bitfinex-derivatives/quotes_BNBF0:USTF0_20250617
["timestamp","ask_amount","ask_price","bid_price","bid_amount"]
[1750155225461,1.00862907,654.5,653.59,0.30600223]
[1750155225660,0.99636368,654.54,653.59,0.30600223]
[1750155225661,1.00862907,654.49,653.59,0.30600223]
[1750155225861,1.00862907,654.48,653.59,0.30600223]
[1750155226062,1.00862907,654.47,653.59,0.30600223]
[1750155226361,1.00862907,654.46,653.59,0.30600223]
[1750155226661,1.00862907,654.45,653.59,0.30600223]
[1750155226958,1.00862907,654.44,653.59,0.30600223]
[1750155227258,1.00862907,654.43,653.59,0.30600223]
[1750155227463,1.00862907,654.42,653.59,0.30600223]
[1750155227663,1.00862907,654.41,653.59,0.30600223]
[1750155227861,1.00862907,654.4,653.59,0.30600223]
[1750155228064,1.00862907,654.39,653.59,0.30600223]
[1750155228265,1.00862907,654.38,653.59,0.30600223]
[1750155228560,1.00862907,654.37,653.59,0.30600223]
[1750155228764,1.00862907,654.36,653.59,0.30600223]
[1750155228964,1.00862907,654.35,653.59,0.30600223]
[1750155229161,1.00862907,654.34,653.59,0.30600223]
[1750155229364,1.00862907,654.33,653.59,0.30600223]
[1750155229665,1.00862907,654.32,653.59,0.30600223]
[1750155229865,1.00862907,654.31,653.59,0.30600223]
[1750155230064,1.00862907,654.3,653.59,0.30600223]
[1750155230264,1.00862907,654.29,653.59,0.30600223]
[1750155230466,1.00862907,654.28,653.59,0.30600223]
[1750155230666,1.00862907,654.27,653.59,0.30600223]
[1750155230865,1.00862907,654.26,653.59,0.30600223]
[1750155231063,1.00862907,654.25,653.59,0.30600223]
[1750155231367,1.00862907,654.24,653.59,0.30600223]
[1750155231568,1.00862907,654.23,653.59,0.30600223]
[1750155231864,1.00862907,654.22,653.59,0.30600223]
[1750155232064,1.00862907,654.21,653.59,0.30600223]
[1750155232268,1.00862907,654.2,653.59,0.30600223]
[1750155232470,1.00862907,654.19,653.59,0.30600223]
[1750155232767,1.00862907,654.18,653.59,0.30600223]
[1750155233070,1.00862907,654.17,653.59,0.30600223]
[1750155233269,1.00862907,654.16,653.59,0.30600223]
[1750155233466,1.00862907,654.15,653.59,0.30600223]
[1750155233669,1.00862907,654.14,653.59,0.30600223]
[1750155233865,1.00862907,654.13,653.59,0.30600223]
[1750155234069,0.99577965,654.44,653.59,0.30600223]
[1750155234265,1.0061242,654.43,653.59,0.30600223]
[1750155234565,1.0061242,654.42,653.59,0.30600223]
[1750155234770,1.0061242,654.41,653.59,0.30600223]
[1750155234967,1.0061242,654.4,653.59,0.30600223]
[1750155235165,0.99577965,654.44,653.59,0.30600223]
[1750155235166,1.0061242,654.39,653.59,0.30600223]
[1750155235469,1.0061242,654.38,653.59,0.30600223]
[1750155235668,1.0061242,654.37,653.59,0.30600223]
[1750155235867,1.0061242,654.36,653.59,0.30600223]
[1750155236069,1.0061242,654.35,653.59,0.30600223]
[1750155236370,1.0061242,654.34,653.59,0.30600223]
[1750155236669,1.0061242,654.33,653.59,0.30600223]
[1750155236869,1.0061242,654.32,653.59,0.30600223]
[1750155237068,1.0061242,654.31,653.59,0.30600223]
[1750155237268,1.0061242,654.3,653.59,0.30600223]
[1750155237469,1.0061242,654.29,653.59,0.30600223]
[1750155237665,1.0061242,654.28,653.59,0.30600223]
[1750155237870,1.0061242,654.27,653.59,0.30600223]
[1750155238066,1.0061242,654.26,653.59,0.30600223]
[1750155238266,1.0061242,654.25,653.59,0.30600223]
[1750155238470,1.0061242,654.24,653.59,0.30600223]
[1750155238670,1.0061242,654.23,653.59,0.30600223]
[1750155238967,1.0061242,654.22,653.59,0.30600223]
[1750155239171,1.0061242,654.21,653.59,0.30600223]
[1750155239466,1.0061242,654.2,653.59,0.30600223]
[1750155239671,1.0061242,654.19,653.59,0.30600223]
[1750155239866,1.0061242,654.18,653.59,0.30600223]
[1750155240067,1.0061242,654.17,653.59,0.30600223]
[1750155240268,1.0061242,654.16,653.59,0.30600223]
[1750155240572,1.0061242,654.15,653.59,0.30600223]
[1750155240771,1.0061242,654.14,653.59,0.30600223]
[1750155241067,1.0061242,654.13,653.59,0.30600223]
[1750155241270,1.0061242,654.12,653.59,0.30600223]
[1750155241472,1.0061242,654.11,653.59,0.30600223]
[1750155241772,1.0061242,654.1,653.59,0.30600223]
[1750155241973,1.0061242,654.09,653.59,0.30600223]
[1750155242268,1.0061242,654.08,653.59,0.30600223]
[1750155242469,1.0061242,654.07,653.59,0.30600223]
[1750155242668,1.0061242,654.06,653.59,0.30600223]
[1750155242872,1.0061242,654.05,653.59,0.30600223]
[1750155243071,1.0061242,654.04,653.59,0.30600223]
[1750155243270,1.0061242,654.03,653.59,0.30600223]
[1750155243470,0.99143897,654.37,653.59,0.30600223]
[1750155243672,1.00602249,654.36,653.59,0.30600223]
[1750155243970,1.00602249,654.35,653.59,0.30600223]
[1750155244170,1.00602249,654.34,653.59,0.30600223]
[1750155244374,1.00602249,654.33,653.59,0.30600223]
[1750155244574,1.00602249,654.32,653.59,0.30600223]
[1750155244772,1.00602249,654.31,653.59,0.30600223]
[1750155245072,1.00602249,654.3,653.59,0.30600223]
[1750155245273,1.00602249,654.29,653.59,0.30600223]
[1750155245476,1.00602249,654.28,653.59,0.30600223]
[1750155245674,1.00602249,654.27,653.59,0.30600223]
[1750155245970,1.00602249,654.26,653.59,0.30600223]
[1750155246170,1.00602249,654.25,653.59,0.30600223]
[1750155246377,1.00602249,654.24,653.59,0.30600223]
[1750155246573,1.00602249,654.23,653.59,0.30600223]
[1750155246777,1.00602249,654.22,653.59,0.30600223]
[1750155246977,1.00602249,654.21,653.59,0.30600223]
[1750155247177,1.00602249,654.2,653.59,0.30600223]
[1750155247377,1.00602249,654.19,653.59,0.30600223]
[1750155247574,1.00602249,654.18,653.59,0.30600223]
[1750155247779,1.00602249,654.17,653.59,0.30600223]
[1750155247974,2.83356611,654.37,653.59,0.30600223]
[1750155247975,1.00602249,654.16,653.59,0.30600223]
[1750155248174,1.00602249,654.15,653.59,0.30600223]
[1750155248478,1.00602249,654.14,653.59,0.30600223]
[1750155248677,1.00602249,654.13,653.59,0.30600223]
[1750155248878,1.00602249,654.12,653.59,0.30600223]
[1750155249078,1.00602249,654.11,653.59,0.30600223]
[1750155249281,1.00602249,654.1,653.59,0.30600223]
[1750155249476,1.00602249,654.09,653.59,0.30600223]
[1750155249676,1.00602249,654.08,653.59,0.30600223]
[1750155249875,1.00602249,654.07,653.59,0.30600223]
[1750155250075,1.00602249,654.06,653.59,0.30600223]
[1750155250279,1.00576409,654.05,653.59,0.30600223]
[1750155250475,2.8343041,654.38,653.59,0.30600223]
[1750155250681,3.84008292,654.37,653.59,0.30600223]
[1750155250881,3.2829365,654.36,653.59,0.30600223]
[1750155251082,1.99763426,654.35,653.59,0.30600223]
[1750155251276,1.99763426,654.34,653.59,0.30600223]
[1750155251477,1.99763426,654.33,653.59,0.30600223]
[1750155251677,1.99763426,654.32,653.59,0.30600223]
[1750155251877,1.99763426,654.31,653.59,0.30600223]
[1750155252080,1.99763426,654.3,653.59,0.30600223]
[1750155252280,1.99763426,654.29,653.59,0.30600223]
[1750155252481,1.00577882,654.28,653.59,0.30600223]
[1750155252677,1.00577882,654.27,653.59,0.30600223]
[1750155252881,1.00577882,654.26,653.59,0.30600223]
[1750155253180,1.00577882,654.25,653.59,0.30600223]
[1750155253377,1.00577882,654.24,653.59,0.30600223]
[1750155253683,1.00577882,654.23,653.59,0.30600223]
[1750155253882,1.00577882,654.22,653.59,0.30600223]
[1750155254087,1.00577882,654.21,653.59,0.30600223]
[1750155254378,1.00577882,654.2,653.59,0.30600223]
[1750155254583,1.00577882,654.19,653.59,0.30600223]
[1750155254781,1.00577882,654.18,653.59,0.30600223]
[1750155254981,1.00577882,654.17,653.59,0.30600223]
[1750155255184,1.00577882,654.16,653.59,0.30600223]
[1750155255380,1.00577882,654.15,653.59,0.30600223]
[1750155255580,0.9911501,654.33,653.59,0.30600223]
[1750155255782,1.0054637,654.32,653.59,0.30600223]
[1750155255981,1.0054637,654.31,653.59,0.30600223]
[1750155256185,1.0054637,654.3,653.59,0.30600223]
[1750155256382,1.0054637,654.29,653.59,0.30600223]
[1750155256582,0.9911501,654.34,653.59,0.30600223]
[1750155256583,1.0054637,654.28,653.59,0.30600223]
[1750155256885,1.0054637,654.27,653.59,0.30600223]
[1750155257079,1.0054637,654.26,653.59,0.30600223]
[1750155257283,1.0054637,654.25,653.59,0.30600223]
[1750155257482,1.0054637,654.24,653.59,0.30600223]
[1750155257680,1.0054637,654.23,653.59,0.30600223]
[1750155257881,1.0054637,654.22,653.59,0.30600223]
[1750155258086,1.0054637,654.21,653.59,0.30600223]
[1750155258381,1.0054637,654.2,653.59,0.30600223]
[1750155258581,1.0054637,654.19,653.59,0.30600223]
[1750155258885,1.0054637,654.18,653.59,0.30600223]
[1750155259083,1.0054637,654.17,653.59,0.30600223]
[1750155259288,0.99125678,654.46,653.59,0.30600223]
[1750155259582,1.00562593,654.45,653.59,0.30600223]
[1750155259785,1.00562593,654.44,653.59,0.30600223]
[1750155259981,1.00562593,654.43,653.59,0.30600223]
[1750155260185,1.00562593,654.42,653.59,0.30600223]
[1750155260386,1.00562593,654.41,653.59,0.30600223]
[1750155260583,1.12610603,654.53,653.59,0.30600223]
[1750155260584,1.00562593,654.4,653.59,0.30600223]
[1750155260786,1.00562593,654.39,653.59,0.30600223]
[1750155260987,0.99135735,654.5,653.59,0.30600223]
[1750155261287,1.0056231,654.49,653.59,0.30600223]
[1750155261487,1.0056231,654.48,653.59,0.30600223]
[1750155261688,1.0056231,654.47,653.59,0.30600223]
[1750155261885,1.0056231,654.46,653.59,0.30600223]
[1750155262084,1.0056231,654.45,653.59,0.30600223]
[1750155262285,1.0056231,654.44,653.59,0.30600223]
[1750155262484,1.0056231,654.43,653.59,0.30600223]
[1750155262683,1.0056231,654.42,653.59,0.30600223]
[1750155262888,1.0056231,654.41,653.59,0.30600223]
[1750155263086,1.0056231,654.4,653.59,0.30600223]
[1750155263286,1.0056231,654.39,653.59,0.30600223]
[1750155263484,1.0056231,654.38,653.59,0.30600223]
[1750155263786,1.0056231,654.37,653.59,0.30600223]
[1750155263989,1.0056231,654.36,653.59,0.30600223]
[1750155264186,1.12627434,654.53,653.59,0.30600223]
[1750155264187,1.0056231,654.35,653.59,0.30600223]
[1750155264388,1.0056231,654.34,653.59,0.30600223]
[1750155264587,1.0056231,654.33,653.59,0.30600223]
[1750155264786,1.0056231,654.32,653.59,0.30600223]
[1750155264986,1.0056231,654.31,653.59,0.30600223]
[1750155265189,1.0056231,654.3,653.59,0.30600223]
[1750155265386,1.0056231,654.29,653.59,0.30600223]
[1750155265590,1.0056231,654.28,653.59,0.30600223]
[1750155265787,1.0056231,654.27,653.59,0.30600223]
[1750155265987,1.0056231,654.26,653.59,0.30600223]
[1750155266287,1.0056231,654.25,653.59,0.30600223]
[1750155266491,1.0056231,654.24,653.59,0.30600223]
[1750155266689,0.99135801,654.4,653.59,0.30600223]
[1750155266690,1.0056231,654.23,653.59,0.30600223]
[1750155266889,1.0056231,654.22,653.59,0.30600223]
[1750155267093,1.0056231,654.21,653.59,0.30600223]
[1750155267293,1.0056231,654.2,653.59,0.30600223]
[1750155267491,1.0056231,654.19,653.59,0.30600223]
[1750155267691,1.0056231,654.18,653.59,0.30600223]
[1750155267894,1.0056231,654.17,653.59,0.30600223]
[1750155268191,1.0056231,654.16,653.59,0.30600223]
[1750155268390,1.0056231,654.15,653.59,0.30600223]
[1750155268589,1.0056231,654.14,653.59,0.30600223]
[1750155268795,1.0056231,654.13,653.59,0.30600223]
[1750155268993,0.99135731,654.4,653.59,0.30600223]
[1750155268994,1.0056231,654.12,653.59,0.30600223]
[1750155269297,1.0056231,654.11,653.59,0.30600223]
[1750155269594,2.1177981,654.47,653.59,0.30600223]
[1750155269896,1.99858278,654.46,653.59,0.30600223]
[1750155270094,1.99848766,654.45,653.59,0.30600223]
[1750155270397,1.99848766,654.44,653.59,0.30600223]
[1750155270598,1.99848766,654.43,653.59,0.30600223]
[1750155270797,1.99848766,654.42,653.59,0.30600223]
[1750155270997,1.99848766,654.41,653.59,0.30600223]
[1750155271195,1.99848766,654.4,653.59,0.30600223]
[1750155271395,1.99848766,654.39,653.59,0.30600223]
[1750155271598,1.00705902,654.38,653.59,0.30600223]
[1750155271800,1.00705902,654.37,653.59,0.30600223]
[1750155271999,1.00705902,654.36,653.59,0.30600223]
[1750155272200,1.00705902,654.35,653.59,0.30600223]
[1750155272400,1.00705902,654.34,653.59,0.30600223]
[1750155272601,1.00705902,654.33,653.59,0.30600223]
[1750155272897,1.00705902,654.32,653.59,0.30600223]
[1750155273100,1.00705902,654.31,653.59,0.30600223]
[1750155273300,1.00705902,654.3,653.59,0.30600223]
[1750155273498,1.00705902,654.29,653.59,0.30600223]
[1750155273698,1.00705902,654.28,653.59,0.30600223]
[1750155274001,1.00705902,654.27,653.59,0.30600223]
[1750155274204,1.00705902,654.26,653.59,0.30600223]
[1750155274402,1.00705902,654.25,653.59,0.30600223]
[1750155274600,1.00705902,654.24,653.59,0.30600223]
[1750155274799,1.00705902,654.23,653.59,0.30600223]
[1750155275103,1.00705902,654.22,653.59,0.30600223]
[1750155275304,1.00705902,654.21,653.59,0.30600223]
[1750155275504,0.99257126,654.42,653.59,0.30600223]
[1750155275505,1.00705902,654.2,653.59,0.30600223]
[1750155275800,1.00705902,654.19,653.59,0.30600223]
[1750155276004,1.00705902,654.18,653.59,0.30600223]
[1750155276204,0.99257126,654.42,653.59,0.30600223]
[1750155276205,1.00705902,654.17,653.59,0.30600223]
[1750155276405,1.00705902,654.16,653.59,0.30600223]
[1750155276605,1.00705902,654.15,653.59,0.30600223]
[1750155276805,1.00705902,654.14,653.59,0.30600223]
[1750155277003,1.00705902,654.13,653.59,0.30600223]
[1750155277207,1.00705902,654.12,653.59,0.30600223]
[1750155277403,1.00705902,654.11,653.59,0.30600223]
[1750155277603,1.00705902,654.1,653.59,0.30600223]
[1750155277809,1.00705902,654.09,653.59,0.30600223]
[1750155278105,1.00705902,654.08,653.59,0.30600223]
[1750155278309,1.00705902,654.07,653.59,0.30600223]
[1750155278609,1.00705902,654.06,653.59,0.30600223]
[1750155278810,0.99257126,654.4,653.59,0.30600223]
[1750155279104,1.00765943,654.39,653.59,0.30600223]
[1750155279305,1.12627434,654.41,653.59,0.30600223]
[1750155279306,1.00765943,654.38,653.59,0.30600223]
[1750155279506,1.00765943,654.37,653.59,0.30600223]
[1750155279705,1.00765943,654.36,653.59,0.30600223]
[1750155279910,1.00765943,654.35,653.59,0.30600223]
[1750155280109,2.25254868,654.8,653.59,0.30600223]
[1750155280110,1.00765943,654.34,653.59,0.30600223]
[1750155280310,1.00765943,654.33,653.59,0.30600223]
[1750155280506,1.00765943,654.32,653.59,0.30600223]
[1750155280706,1.00765943,654.31,653.59,0.30600223]
[1750155281006,1.00765943,654.3,653.59,0.30600223]
[1750155281207,1.00765943,654.29,653.59,0.30600223]
[1750155281406,1.00765943,654.28,653.59,0.30600223]
[1750155281607,1.00765943,654.27,653.59,0.30600223]
[1750155281810,1.00765943,654.26,653.59,0.30600223]
[1750155282010,1.00765943,654.25,653.59,0.30600223]
[1750155282312,1.00765943,654.24,653.59,0.30600223]
[1750155282507,1.00765943,654.23,653.59,0.30600223]
[1750155282707,1.00765943,654.22,653.59,0.30600223]
[1750155282904,1.00765943,654.21,653.59,0.30600223]
[1750155283107,1.00765943,654.2,653.59,0.30600223]
[1750155283406,1.00765943,654.19,653.59,0.30600223]
[1750155283709,1.00765943,654.18,653.59,0.30600223]
[1750155283910,1.50169912,654.44,653.59,0.30600223]
[1750155283911,1.00765943,654.17,653.59,0.30600223]
[1750155284110,1.00765943,654.16,653.59,0.30600223]
[1750155284305,1.00765943,654.15,653.59,0.30600223]
[1750155284505,1.00765943,654.14,653.59,0.30600223]
[1750155284705,1.00765943,654.13,653.59,0.30600223]
[1750155284907,1.00765943,654.12,653.59,0.30600223]
[1750155285211,0.9952445,654.47,653.59,0.30600223]
[1750155285408,1.00972598,654.46,653.59,0.30600223]
[1750155285607,1.00972598,654.45,653.59,0.30600223]
[1750155285810,1.00972598,654.44,653.59,0.30600223]
[1750155286012,1.00972598,654.43,653.59,0.30600223]
[1750155286308,1.00972598,654.42,653.59,0.30600223]
[1750155286512,1.00972598,654.41,653.59,0.30600223]
[1750155286712,1.00972598,654.4,653.59,0.30600223]
[1750155286913,1.00972598,654.39,653.59,0.30600223]
[1750155287113,1.00972598,654.38,653.59,0.30600223]
[1750155287312,1.00972598,654.37,653.59,0.30600223]
[1750155287509,1.12627434,654.5,653.59,0.30600223]
[1750155287510,1.00972598,654.36,653.59,0.30600223]
[1750155287711,1.00972598,654.35,653.59,0.30600223]
[1750155287914,1.00972598,654.34,653.59,0.30600223]
[1750155288116,1.00972598,654.33,653.59,0.30600223]
[1750155288313,1.00972598,654.32,653.59,0.30600223]
[1750155288617,1.00972598,654.31,653.59,0.30600223]
[1750155288813,1.00972598,654.3,653.59,0.30600223]
[1750155289014,1.00972598,654.29,653.59,0.30600223]
[1750155289218,1.00972598,654.28,653.59,0.30600223]
[1750155289515,1.00972598,654.27,653.59,0.30600223]
[1750155289713,1.00972598,654.26,653.59,0.30600223]
[1750155289918,1.00972598,654.25,653.59,0.30600223]
[1750155290113,1.00972598,654.24,653.59,0.30600223]
[1750155290319,1.00972598,654.23,653.59,0.30600223]
[1750155290518,1.00972598,654.22,653.59,0.30600223]
[1750155290818,1.00972598,654.21,653.59,0.30600223]
[1750155291018,1.00972598,654.2,653.59,0.30600223]
[1750155291219,1.00972598,654.19,653.59,0.30600223]
[1750155291519,1.00972598,654.18,653.59,0.30600223]
[1750155291717,1.00972598,654.17,653.59,0.30600223]
[1750155291916,0.9960909,654.36,653.59,0.30600223]
[1750155291917,1.00972598,654.16,653.59,0.30600223]
[1750155292214,1.00972598,654.15,653.59,0.30600223]
[1750155292412,1.00972598,654.14,653.59,0.30600223]
[1750155292613,1.00972598,654.13,653.59,0.30600223]
[1750155292817,1.00972598,654.12,653.59,0.30600223]
[1750155293119,1.00972598,654.11,653.59,0.30600223]
[1750155293318,2.25254868,654.7,653.59,0.30600223]
[1750155293319,1.00972598,654.1,653.59,0.30600223]
[1750155293618,0.99623611,654.42,653.59,0.30600223]
[1750155293819,1.0081771,654.41,653.59,0.30600223]
[1750155294015,1.0081771,654.4,653.59,0.30600223]
[1750155294315,1.0081771,654.39,653.59,0.30600223]
[1750155294515,1.0081771,654.38,653.59,0.30600223]
[1750155294719,1.0081771,654.37,653.59,0.30600223]
[1750155294916,1.0081771,654.36,653.59,0.30600223]
[1750155295116,1.0081771,654.35,653.59,0.30600223]
[1750155295421,1.0081771,654.34,653.59,0.30600223]
[1750155295721,1.0081771,654.33,653.59,0.30600223]
[1750155295917,1.0081771,654.32,653.59,0.30600223]
[1750155296217,1.0081771,654.31,653.59,0.30600223]
[1750155296424,1.0081771,654.3,653.59,0.30600223]
[1750155296618,1.0081771,654.29,653.59,0.30600223]
[1750155296923,1.0081771,654.28,653.59,0.30600223]
[1750155297122,1.0081771,654.27,653.59,0.30600223]
[1750155297321,1.0081771,654.26,653.59,0.30600223]
[1750155297523,1.0081771,654.25,653.59,0.30600223]
[1750155297817,1.0081771,654.24,653.59,0.30600223]
[1750155298023,1.0081771,654.23,653.59,0.30600223]
[1750155298319,1.0081771,654.22,653.59,0.30600223]
[1750155298523,1.0081771,654.21,653.59,0.30600223]
[1750155298727,1.0081771,654.2,653.59,0.30600223]
[1750155299024,1.0081771,654.19,653.59,0.30600223]
[1750155299225,1.0081771,654.18,653.59,0.30600223]
[1750155299520,1.0081771,654.17,653.59,0.30600223]
[1750155299724,1.0081771,654.16,653.59,0.30600223]
[1750155299924,1.0081771,654.15,653.59,0.30600223]
[1750155300125,1.0081771,654.14,653.59,0.30600223]
[1750155300329,1.00785586,654.13,653.59,0.30600223]
[1750155300619,1.00785586,654.12,653.59,0.30600223]
[1750155300921,0.9959817,654.43,653.59,0.30600223]
[1750155301119,1.00785428,654.42,653.59,0.30600223]
[1750155301321,1.00785428,654.41,653.59,0.30600223]
[1750155301519,1.12627434,654.45,653.59,0.30600223]
[1750155301520,1.00785428,654.4,653.59,0.30600223]
[1750155301723,1.12627434,654.38,653.59,0.30600223]
[1750155301925,1.12627434,654.36,653.59,0.30600223]
[1750155302120,1.00785428,654.35,653.66,0.26599099]
[1750155302325,1.00785428,654.34,653.67,0.30596478]
[1750155302523,1.00785428,654.33,653.67,0.30596478]
[1750155302726,1.00785428,654.32,653.67,0.30596478]
[1750155302922,1.00785428,654.31,653.67,0.30596478]
[1750155303123,1.00785428,654.3,653.67,0.30596478]
[1750155303327,1.00785428,654.29,653.67,0.30596478]
[1750155303529,1.00785428,654.28,653.67,0.30596478]
[1750155303823,1.00785428,654.27,653.67,0.30596478]
[1750155304029,1.00785428,654.26,653.67,0.30596478]
[1750155304231,1.00785428,654.25,653.67,0.30596478]
[1750155304427,1.00785428,654.24,653.67,0.30596478]
[1750155304727,1.00785428,654.23,653.67,0.30596478]
[1750155304931,1.00785428,654.22,653.67,0.30596478]
[1750155305132,1.00785428,654.21,653.67,0.30596478]
[1750155305330,1.00785428,654.2,653.67,0.30596478]
[1750155305527,1.00785428,654.19,653.67,0.30596478]
[1750155305731,1.00785428,654.18,653.67,0.30596478]
[1750155306027,1.00785428,654.17,653.67,0.30596478]
[1750155306224,1.00785428,654.16,653.67,0.30596478]
[1750155306427,1.00785428,654.15,653.67,0.30596478]
[1750155306626,1.00785428,654.14,653.67,0.30596478]
[1750155306824,1.00785428,654.13,653.67,0.30596478]
[1750155307030,1.00805674,654.12,653.67,0.30596478]
[1750155307231,1.00805674,654.11,653.67,0.30596478]
[1750155307431,1.00805674,654.1,653.67,0.30596478]
[1750155307628,1.00805674,654.09,653.67,0.30596478]
[1750155307829,1.00805674,654.08,653.67,0.30596478]
[1750155308033,1.00805674,654.07,653.67,0.30596478]
[1750155308230,1.00805674,654.06,653.67,0.30596478]
[1750155308429,1.00805674,654.05,653.67,0.30596478]
[1750155308630,1.50660916,654.52,653.67,0.30596478]
[1750155308929,1.1301258,654.33,653.67,0.30596478]
[1750155309130,1.00820778,654.32,653.67,0.30596478]
[1750155309329,1.00820778,654.31,653.67,0.30596478]
[1750155309534,1.00820778,654.3,653.67,0.30596478]
[1750155309831,1.00820778,654.29,653.67,0.30596478]
[1750155310030,1.00820778,654.28,653.67,0.30596478]
[1750155310333,1.00820778,654.27,653.67,0.30596478]
[1750155310530,1.00820778,654.26,653.67,0.30596478]
[1750155310734,1.00820778,654.25,653.67,0.30596478]
[1750155310933,0.99687549,654.33,653.67,0.30596478]
[1750155310934,1.00820778,654.24,653.67,0.30596478]
[1750155311133,1.00820778,654.23,653.67,0.30596478]
[1750155311334,1.00820778,654.22,653.67,0.30596478]
[1750155311628,0.9968769,654.34,653.67,0.30596478]
[1750155311629,1.00820778,654.21,653.67,0.30596478]
[1750155311829,1.00820778,654.2,653.67,0.30596478]
[1750155312034,1.00820778,654.19,653.67,0.30596478]
[1750155312335,1.00820778,654.18,653.67,0.30596478]
[1750155312535,1.00820778,654.17,653.67,0.30596478]
[1750155312734,1.00820778,654.16,653.67,0.30596478]
[1750155312938,1.00820778,654.15,653.67,0.30596478]
[1750155313133,1.00820778,654.14,653.67,0.30596478]
[1750155313332,1.00820778,654.13,653.67,0.30596478]
[1750155313537,1.00820778,654.12,653.67,0.30596478]
[1750155313737,1.00820778,654.11,653.67,0.30596478]
[1750155314038,1.00820778,654.1,653.67,0.30596478]
[1750155314338,1.00820778,654.09,653.67,0.30596478]
[1750155314536,1.00820778,654.08,653.67,0.30596478]
[1750155314738,1.00820778,654.07,653.67,0.30596478]
[1750155314937,1.00820778,654.06,653.67,0.30596478]
[1750155315236,1.00820778,654.05,653.67,0.30596478]
[1750155315436,1.00820778,654.04,653.67,0.30596478]
[1750155315736,1.00820778,654.03,653.67,0.30596478]
[1750155316039,1.00820778,654.02,653.67,0.30596478]
[1750155316335,1.00820778,654.01,653.67,0.30596478]
[1750155316540,0.99755354,654.31,653.67,0.30596478]
[1750155316736,1.00892284,654.3,653.67,0.30596478]
[1750155317040,1.00892284,654.29,653.67,0.30596478]
[1750155317237,1.00892284,654.28,653.67,0.30596478]
[1750155317537,1.00892284,654.27,653.67,0.30596478]
[1750155317742,1.00892284,654.26,653.67,0.30596478]
[1750155317938,1.00892284,654.25,653.67,0.30596478]
[1750155318240,1.00892284,654.24,653.67,0.30596478]
[1750155318440,1.00892284,654.23,653.67,0.30596478]
[1750155318737,1.00892284,654.22,653.67,0.30596478]
[1750155318940,1.00892284,654.21,653.67,0.30596478]
[1750155319142,1.00892284,654.2,653.67,0.30596478]
[1750155319336,0.99755354,654.32,653.67,0.30596478]
[1750155319337,1.00892284,654.19,653.67,0.30596478]
[1750155319643,1.00892284,654.18,653.67,0.30596478]
[1750155319943,1.00892284,654.17,653.67,0.30596478]
[1750155320142,1.00892284,654.16,653.67,0.30596478]
[1750155320441,1.00892284,654.15,653.67,0.30596478]
[1750155320743,1.00892284,654.14,653.67,0.30596478]
[1750155320942,1.00892284,654.13,653.67,0.30596478]
[1750155321237,1.00892284,654.12,653.67,0.30596478]
[1750155321436,1.00892284,654.11,653.67,0.30596478]
[1750155321636,1.00892284,654.1,653.67,0.30596478]
[1750155321838,1.00892284,654.09,653.67,0.30596478]
[1750155322038,1.00892284,654.08,653.67,0.30596478]
[1750155322237,1.00892284,654.07,653.67,0.30596478]
[1750155322437,1.00892284,654.06,653.67,0.30596478]
[1750155322642,1.00892284,654.05,653.67,0.30596478]
[1750155322843,1.00892284,654.04,653.67,0.30596478]
[1750155323042,1.00892284,654.03,653.67,0.30596478]
[1750155323338,1.00892284,654.02,653.67,0.30596478]
[1750155323543,1.00892284,654.01,653.67,0.30596478]
[1750155323743,1.00892284,654.0,653.67,0.30596478]
[1750155323943,1.00892284,653.99,653.67,0.30596478]
[1750155324142,3.42011857,654.32,653.67,0.30596478]
[1750155324445,2.0054462,654.31,653.67,0.30596478]
[1750155324645,2.0054006,654.3,653.67,0.30596478]
[1750155324839,2.0054006,654.29,653.67,0.30596478]
[1750155325045,2.0054006,654.28,653.67,0.30596478]
[1750155325245,2.0054006,654.27,653.67,0.30596478]
[1750155325443,1.00781611,654.26,653.67,0.30596478]
[1750155325646,1.00781611,654.25,653.67,0.30596478]
[1750155325946,1.00781611,654.24,653.67,0.30596478]
[1750155326142,1.00781611,654.23,653.67,0.30596478]
[1750155326446,1.00781611,654.22,653.67,0.30596478]
[1750155326646,1.00781611,654.21,653.67,0.30596478]
[1750155326842,1.00781611,654.2,653.67,0.30596478]
[1750155327049,1.1301258,654.32,653.67,0.30596478]
[1750155327050,1.00781611,654.19,653.67,0.30596478]
[1750155327244,1.1301258,654.32,653.67,0.30596478]
[1750155327245,1.00781611,654.18,653.67,0.30596478]
[1750155327448,1.00781611,654.17,653.67,0.30596478]
[1750155327649,1.00781611,654.16,653.67,0.30596478]
[1750155327849,1.00781611,654.15,653.67,0.30596478]
[1750155328044,1.00781611,654.14,653.67,0.30596478]
[1750155328348,1.00781611,654.13,653.67,0.30596478]
[1750155328546,1.00781611,654.12,653.67,0.30596478]
[1750155328746,1.00781611,654.11,653.67,0.30596478]
[1750155328946,1.00781611,654.1,653.67,0.30596478]
[1750155329147,1.00781611,654.09,653.67,0.30596478]
[1750155329345,1.00781611,654.08,653.67,0.30596478]
[1750155329645,1.00781611,654.07,653.67,0.30596478]
[1750155329847,1.00781611,654.06,653.67,0.30596478]
[1750155330048,1.00781611,654.05,653.67,0.30596478]
[1750155330245,1.00781611,654.04,653.67,0.30596478]
[1750155330545,1.00781611,654.03,653.67,0.30596478]
[1750155330743,1.00781611,654.02,653.67,0.30596478]
[1750155330945,1.00781611,654.01,653.67,0.30596478]